bitfinex/quotes_SOLUSD_20250625
["timestamp","ask_amount","ask_price","bid_price","bid_amount"]
[1750842039506,5.5518114,145.72,145.7,6.863243]
[1750842039710,5.5518114,145.73,145.7,6.863243]
[1750842040222,5.5518114,145.72,145.7,6.863243]
[1750842041438,5.5518114,145.72,145.69,13.28367824]
[1750842041801,6.86159927,145.74,145.69,13.28367824]
[1750842042007,5.5518114,145.72,145.69,13.28367824]
[1750842042828,5.5518114,145.72,145.69,101.98367824]
[1750842043025,6.86121384,145.75,145.69,101.98367824]
[1750842043210,5.5518114,145.73,145.69,107.53548964]
[1750842044031,5.5518114,145.73,145.69,101.98367824]
[1750842044634,5.5518114,145.72,145.69,101.98367824]
[1750842046110,5.5518114,145.71,145.69,95.12]
[1750842047718,5.5518114,145.7,145.69,95.12]
[1750842048228,5.5518114,145.72,145.69,101.98385008]
[1750842048434,5.5518114,145.73,145.69,101.98385008]
[1750842050436,5.5518114,145.73,145.69,107.53566148]
[1750842050632,5.5518114,145.74,145.69,136.27566148]
[1750842050937,5.5518114,145.74,145.7,5.5518114]
[1750842051135,32.86020747,145.77,145.71,5.5518114]
[1750842051340,32.86020747,145.77,145.71,95.8262114]
[1750842051540,5.5518114,145.76,145.71,95.8262114]
[1750842052139,5.5518114,145.75,145.71,102.68873579]
[1750842052736,5.5518114,145.74,145.71,95.56252439]
[1750842052937,32.86020747,145.77,145.71,88.7]
[1750842053241,5.5518114,145.74,145.71,95.56279789]
[1750842053741,32.86020747,145.77,145.71,95.56279789]
[1750842053947,5.5518114,145.75,145.71,95.56279789]
[1750842054949,5.5518114,145.74,145.71,95.56279789]
[1750842055624,5.5518114,145.73,145.71,88.7]
[1750842056043,6.86122699,145.75,145.71,88.7]
[1750842056240,5.5518114,145.73,145.71,88.7]
[1750842057349,6.86122699,145.75,145.71,88.7]
[1750842057557,5.5518114,145.72,145.71,88.7]
[1750842060538,5.5518114,145.72,145.7,88.7]
[1750842060740,5.5518114,145.71,145.7,88.7]
[1750842061727,12.41477005,145.71,145.69,6.42]
[1750842061941,5.5518114,145.7,145.69,6.42]
[1750842063445,12.41522938,145.7,145.69,6.42]
[1750842064754,38.41522938,145.7,145.69,6.42]
[1750842065240,38.41522938,145.7,145.65,63.61696707]
[1750842065443,5.5518114,145.66,145.65,63.61696707]
[1750842065642,5.5518114,145.66,145.65,19.17696707]
[1750842066132,5.5518114,145.66,145.64,6.44]
[1750842066450,5.5518114,145.65,145.64,6.44]
[1750842067555,6.86409144,145.69,145.64,13.30614357]
[1750842067851,5.5518114,145.66,145.64,102.00614357]
[1750842072254,5.5518114,145.66,145.64,102.00623719]
[1750842072844,5.5518114,145.66,145.64,95.14]
[1750842073949,5.5518114,145.66,145.64,102.0061413]
[1750842077058,5.5518114,145.66,145.64,95.14]
[1750842077959,6.86388907,145.69,145.64,95.14]
[1750842078262,5.5518114,145.65,145.64,95.14]
[1750842079352,12.41758551,145.65,145.64,95.14]
[1750842079557,12.41758551,145.65,145.64,6.44]
[1750842079767,5.5518114,145.65,145.64,6.44]
[1750842080165,12.41758551,145.65,145.64,6.44]
[1750842080877,5.5518114,145.65,145.64,6.44]
[1750842082473,5.5518114,145.65,145.64,6.05291139]
[1750842084367,12.41758551,145.65,145.64,6.05291139]
[1750842085247,12.41758551,145.65,145.59,14.73971637]
[1750842085569,5.5518114,145.61,145.6,30.0]
[1750842086074,5.5518114,145.61,145.59,14.73971637]
[1750842086371,5.5518114,145.62,145.59,14.73971637]
[1750842087455,6.86530275,145.66,145.59,14.73971637]
[1750842087644,5.5518114,145.65,145.61,6.86766018]
[1750842088367,5.5518114,145.64,145.61,6.86766018]
[1750842089273,5.5518114,145.64,145.61,36.86766018]
[1750842090452,5.5518114,145.68,145.63,5.5518114]
[1750842091570,5.5518114,145.68,145.64,6.86624553]
[1750842091777,5.5518114,145.68,145.65,6.32]
[1750842092683,5.5518114,145.69,145.65,6.32]
[1750842093574,5.5518114,145.69,145.65,13.18537518]
[1750842093769,5.5518114,145.68,145.65,13.18537518]
[1750842096577,5.5518114,145.69,145.65,13.18537518]
[1750842097581,6.86317095,145.71,145.65,18.73718658]
[1750842097778,5.5518114,145.7,145.65,18.73718658]
[1750842098252,5.5518114,145.69,145.65,48.73718658]
[1750842099879,5.5518114,145.7,145.65,48.73718658]
[1750842100096,5.5518114,145.72,145.67,5.5518114]
[1750842100675,5.5518114,145.72,145.68,6.86436024]
[1750842100876,5.5518114,145.71,145.67,30.0]
[1750842101084,5.5518114,145.71,145.66,12.41690329]
[1750842101283,5.5518114,145.69,145.65,130.42565546]
[1750842101764,5.5518114,145.69,145.65,135.97746686]
[1750842102620,5.5518114,145.7,145.66,5.5518114]
[1750842104184,5.5518114,145.7,145.67,30.0]
[1750842104885,5.5518114,145.7,145.67,118.7]
[1750842106398,5.5518114,145.7,145.67,125.56474219]
[1750842106600,5.5518114,145.71,145.67,125.56474219]
[1750842107296,32.86223414,145.73,145.67,131.11655359]
[1750842107608,5.5518114,145.71,145.67,131.11655359]
[1750842109299,5.5518114,145.71,145.67,125.56474219]
[1750842109695,6.86249594,145.72,145.67,125.56474219]
[1750842109892,5.5518114,145.71,145.67,131.11655359]
[1750842110588,5.5518114,145.71,145.67,101.11655359]
[1750842111096,12.41479915,145.71,145.67,94.2518114]
[1750842111300,5.5518114,145.71,145.67,88.7]
[1750842111604,5.5518114,145.7,145.67,88.7]
[1750842111799,5.5518114,145.69,145.67,88.7]
[1750842112208,12.41578299,145.69,145.67,88.7]
[1750842113381,5.5518114,145.68,145.67,88.7]
[1750842113704,12.41538101,145.7,145.67,88.7]
[1750842114383,5.5518114,145.69,145.67,88.7]
[1750842115890,6.86356961,145.7,145.67,88.7]
[1750842115891,5.5518114,145.68,145.67,88.7]
[1750842116578,6.86422925,145.69,145.67,88.7]
[1750842116783,5.5518114,145.68,145.65,88.7]
[1750842117001,5.5518114,145.66,145.65,88.7]
[1750842119004,5.5518114,145.68,145.65,95.56577411]
[1750842119681,5.5518114,145.69,145.65,95.56577411]
[1750842120113,6.86153423,145.74,145.66,24.20146026]
[1750842120314,5.5518114,145.71,145.66,25.83076026]
[1750842121311,5.5518114,145.71,145.67,6.86483146]
[1750842121692,5.5518114,145.71,145.67,36.86483146]
[1750842123208,5.5518114,145.7,145.67,36.86483146]
[1750842124113,5.5518114,145.7,145.67,6.86483146]
[1750842124615,5.5518114,145.7,145.68,13.18432465]
[1750842125614,5.5518114,145.7,145.68,101.88432465]
[1750842129421,5.5518114,145.69,145.68,95.02]
[1750842130125,6.86250352,145.72,145.68,95.02]
[1750842130422,5.5518114,145.69,145.68,95.02]
[1750842133714,12.41570047,145.69,145.68,6.32]
[1750842134120,26.0,145.66,145.63,6.32]
[1750842134313,26.0,145.66,145.64,30.0]
[1750842134826,26.0,145.66,145.63,6.32]
[1750842134998,39.38258907,145.69,145.63,6.32]
[1750842135623,5.5518114,145.66,145.64,6.86624553]
[1750842136119,5.5518114,145.65,145.63,6.32]
[1750842136318,5.5518114,145.64,145.63,6.32]
[1750842136536,5.5518114,145.64,145.63,36.32]
[1750842136946,5.5518114,145.64,145.63,6.32]
[1750842139907,6.86579727,145.65,145.63,6.32]
[1750842140107,5.5518114,145.64,145.63,6.32]
[1750842141731,12.41805693,145.64,145.63,6.32]
[1750842142037,5.5518114,145.64,145.63,6.32]
[1750842143125,12.41805693,145.64,145.63,6.32]
[1750842143527,5.5518114,145.64,145.63,6.32]
[1750842143962,32.86577411,145.65,145.63,6.32]
[1750842144263,5.5518114,145.64,145.63,6.32]
[1750842146346,12.41805693,145.64,145.63,6.32]
[1750842147255,12.41805693,145.64,145.59,88.7]
[1750842147448,5.5518114,145.6,145.59,88.7]
[1750842148706,6.86738764,145.62,145.59,88.7]
[1750842148873,5.5518114,145.6,145.59,88.7]
[1750842151602,12.41994326,145.6,145.59,88.7]
[1750842152279,12.41994326,145.6,145.58,6.3]
[1750842152479,5.5518114,145.59,145.58,6.3]
[1750842157496,5.5518114,145.61,145.58,13.16907542]
[1750842158083,5.5518114,145.61,145.58,95.0]
[1750842158608,5.5518114,145.6,145.58,101.86904328]
[1750842159488,5.5518114,145.61,145.58,101.86904328]
[1750842159687,5.5518114,145.6,145.58,101.86904328]
[1750842160615,5.5518114,145.61,145.58,101.86904328]
[1750842162316,5.5518114,145.6,145.58,95.0]
[1750842163317,5.5518114,145.6,145.58,101.86905049]
[1750842166916,5.5518114,145.6,145.58,95.0]
[1750842167296,5.5518114,145.6,145.58,101.86904562]
[1750842169003,26.0,145.62,145.58,101.86904562]
[1750842169196,5.5518114,145.6,145.58,101.86904562]
[1750842170031,6.2836,145.67,145.59,47.14964886]
[1750842170193,5.5518114,145.65,145.59,135.84964886]
[1750842170533,5.5518114,145.64,145.6,5.5518114]
[1750842170822,5.5518114,145.64,145.61,28.5]
[1750842171005,5.5518114,145.64,145.62,6.86718857]
[1750842172920,5.5518114,145.64,145.61,6.86766018]
[1750842180218,5.5518114,145.65,145.61,6.86766018]
[1750842182719,5.5518114,145.65,145.61,12.41947158]
[1750842183605,31.5518114,145.67,145.62,5.5518114]
[1750842183816,5.5518114,145.7,145.65,5.5518114]
[1750842184030,5.5518114,145.68,145.66,6.28]
[1750842184203,5.5518114,145.67,145.66,6.28]
[1750842185822,12.41664286,145.67,145.66,6.28]
[1750842187229,5.5518114,145.67,145.66,6.28]
[1750842188432,12.41664286,145.67,145.66,6.28]
[1750842191035,5.5518114,145.67,145.66,6.28]
[1750842194728,12.41664286,145.67,145.66,6.28]
[1750842200335,10.41816769,145.67,145.66,6.28]
[1750842202036,3.55333623,145.67,145.66,6.28]
[1750842202214,29.55333623,145.68,145.66,6.28]
[1750842202837,3.55333623,145.67,145.66,6.28]
[1750842203534,3.55333623,145.69,145.66,6.28]
[1750842203943,3.55333623,145.68,145.66,6.28]
[1750842204454,5.5498713,145.68,145.66,6.28]
[1750842208149,5.5498713,145.67,145.66,6.28]
[1750842210358,12.41470276,145.67,145.66,6.28]
[1750842213175,5.5498713,145.69,145.66,6.28]
[1750842213542,31.5498713,145.69,145.66,6.28]
[1750842214361,5.5498713,145.68,145.66,6.28]
[1750842218441,31.5498713,145.69,145.66,13.14526391]
[1750842223269,31.5498713,145.69,145.66,6.28]
[1750842223466,5.5498713,145.68,145.66,6.28]
[1750842223670,26.0,145.69,145.66,6.28]
[1750842223863,5.5498713,145.68,145.66,6.28]
[1750842225770,5.5498713,145.69,145.66,14.77324043]
[1750842226171,5.5498713,145.69,145.66,7.9081]
[1750842226472,5.5498713,145.68,145.66,6.28]
[1750842227373,26.0,145.7,145.66,13.14528974]
[1750842227574,5.5498713,145.69,145.66,101.84528974]
[1750842229274,5.5498713,145.68,145.66,94.98]
[1750842230276,3.55215718,145.68,145.66,94.98]
[1750842232275,10.4165659,145.68,145.66,94.98]
[1750842232469,3.55215718,145.67,145.66,94.98]
[1750842232673,3.55215718,145.68,145.66,94.98]
[1750842232981,3.55215718,145.67,145.66,94.98]
[1750842233163,3.55215718,145.68,145.66,94.98]
[1750842234882,3.55215718,145.67,145.66,94.98]
[1750842237763,6.86407496,145.69,145.66,94.98]
[1750842237964,3.55215718,145.67,145.66,94.98]
[1750842238781,36.41698864,145.67,145.66,94.98]
[1750842242087,10.41698864,145.67,145.66,94.98]
[1750842242689,6.86311841,145.71,145.66,13.14497616]
[1750842242857,6.86264984,145.72,145.66,16.69713334]
[1750842243063,3.55215718,145.72,145.67,29.989]
[1750842243264,3.55215718,145.71,145.67,33.54115718]
[1750842243685,26.0,145.72,145.67,33.54115718]
[1750842243686,3.55215718,145.72,145.68,6.86436024]
[1750842243864,3.55215718,145.72,145.68,10.41651742]
[1750842244060,26.0,145.71,145.68,10.41651742]
[1750842244266,5.54461231,145.76,145.71,18.64964886]
[1750842244580,5.54461231,145.78,145.73,20.26934886]
[1750842244787,5.54461231,145.78,145.74,5.54461231]
[1750842245289,5.54461231,145.78,145.73,25.81396117]
[1750842245897,5.54461231,145.77,145.73,1.6197]
[1750842246271,5.54461231,145.76,145.73,1.6197]
[1750842247496,5.54461231,145.77,145.73,1.6197]
[1750842247794,5.54461231,145.74,145.72,6.24]
[1750842248084,5.54461231,145.73,145.72,6.24]
[1750842248389,5.54461231,145.74,145.72,6.24]
[1750842249185,5.54461231,145.73,145.72,6.24]
[1750842249572,26.0,145.75,145.72,6.24]
[1750842249765,5.54461231,145.74,145.72,6.24]
[1750842250669,26.0,145.76,145.72,6.24]
[1750842250889,5.54461231,145.77,145.73,5.54461231]
[1750842251190,6.85984488,145.78,145.73,5.54461231]
[1750842251372,5.54461231,145.77,145.72,13.10246801]
[1750842251686,5.54461231,145.78,145.74,6.86153423]
[1750842251893,5.54461231,145.78,145.74,12.40614654]
[1750842253177,5.54461231,145.75,145.72,6.24]
[1750842253380,5.54461231,145.74,145.72,6.24]
[1750842253689,5.54461231,145.75,145.72,6.24]
[1750842254488,5.54461231,145.73,145.72,6.24]
[1750842254998,12.40661738,145.73,145.72,6.24]
[1750842255766,6.86200507,145.73,145.72,6.24]
[1750842255984,12.40661738,145.73,145.72,6.24]
[1750842257010,24.01321658,145.76,145.72,6.24]
[1750842257186,5.54461231,145.74,145.72,6.24]
[1750842257393,5.54461231,145.73,145.72,6.24]
[1750842257909,6.86059275,145.76,145.72,6.24]
[1750842258092,5.54461231,145.73,145.72,6.24]
[1750842258707,5.54461231,145.73,145.72,94.94]
[1750842259585,5.54461231,145.74,145.72,94.94]
[1750842260285,12.40603168,145.75,145.72,94.94]
[1750842260602,12.40533433,145.76,145.72,101.80243194]
[1750842260804,12.40533433,145.76,145.72,13.10243194]
[1750842260987,5.54461231,145.76,145.72,13.10243194]
[1750842261505,12.40521137,145.76,145.72,13.10243194]
[1750842262082,12.40521137,145.76,145.72,18.64704425]
[1750842262289,5.54461231,145.76,145.72,18.64704425]
[1750842262813,5.54461231,145.76,145.72,47.02704425]
[1750842263108,6.85965152,145.78,145.72,47.02704425]
[1750842263305,5.54461231,145.76,145.72,47.02704425]
[1750842264410,6.85965152,145.78,145.72,47.02704425]
[1750842264588,5.54461231,145.76,145.72,47.02704425]
[1750842264906,12.40520515,145.76,145.72,47.02704425]
[1750842265207,6.86059284,145.76,145.72,47.02704425]
[1750842265409,12.40520515,145.76,145.72,47.02704425]
[1750842266514,6.85965152,145.78,145.72,47.02704425]
[1750842266693,5.54461231,145.76,145.72,40.16461231]
[1750842266882,5.54461231,145.74,145.72,6.24]
[1750842267088,31.54461231,145.73,145.72,6.24]
[1750842267791,26.0,145.75,145.72,6.24]
[1750842268010,5.54461231,145.76,145.72,13.10243982]
[1750842268191,5.54461231,145.75,145.72,6.24]
[1750842269417,5.54461231,145.75,145.72,13.10245643]
[1750842270704,5.54461231,145.76,145.72,18.64706874]
[1750842270898,26.0,145.77,145.73,5.54461231]
[1750842271587,5.54461231,145.78,145.74,5.54461231]
[1750842272415,6.3188,145.83,145.76,5.54461231]
[1750842272735,6.8554192,145.87,145.82,5.54461231]
[1750842272891,23.98819766,145.91,145.83,6.22]
[1750842273090,6.85353985,145.91,145.84,5.54461231]
[1750842273402,5.54461231,145.88,145.83,6.22]
[1750842273598,5.54461231,145.85,145.83,6.22]
[1750842273788,5.54461231,145.84,145.8,18.64964886]
[1750842273999,10.0,145.9,145.79,6.74]
[1750842274293,5.54461231,145.82,145.79,6.74]
[1750842274492,26.0,145.84,145.79,6.74]
[1750842274795,5.54461231,145.83,145.79,6.74]
[1750842274997,26.0,145.83,145.79,19.14365868]
[1750842275204,26.0,145.83,145.79,13.59904637]
[1750842275403,31.54461231,145.83,145.79,19.14365868]
[1750842275603,26.0,145.83,145.79,6.74]
[1750842275901,5.54461231,145.8,145.79,6.74]
[1750842276504,5.54461231,145.8,145.74,6.74]
[1750842276692,5.54461231,145.77,145.74,6.74]
[1750842276897,5.54461231,145.76,145.74,6.74]
[1750842277126,5.54461231,145.75,145.74,6.74]
[1750842277303,26.0,145.77,145.74,6.74]
[1750842277807,5.54461231,145.76,145.74,6.74]
[1750842278009,5.54461231,145.75,145.74,6.74]
[1750842279013,26.0,145.77,145.74,6.74]
[1750842279213,5.54461231,145.75,145.74,6.74]
[1750842280437,32.86018728,145.77,145.74,6.74]
[1750842280612,5.54461231,145.75,145.74,6.74]
[1750842282440,26.0,145.77,145.74,6.74]
[1750842282735,5.54461231,145.77,145.74,6.74]
[1750842283915,6.85967386,145.78,145.74,6.74]
[1750842284225,30.24336117,145.84,145.74,43.60138074]
[1750842284411,5.54461231,145.79,145.74,49.14599305]
[1750842284706,5.54461231,145.77,145.74,43.60138074]
[1750842284912,24.00054857,145.83,145.74,43.60138074]
[1750842285111,24.00054857,145.83,145.74,49.14599305]
[1750842285311,5.54461231,145.79,145.76,6.86059275]
[1750842286458,5.54461231,145.79,145.76,36.86059275]
[1750842286661,26.0,145.81,145.76,36.86059275]
[1750842286824,5.54461231,145.79,145.76,36.86059275]
[1750842287862,5.54461231,145.79,145.76,6.86059275]
[1750842288656,5.54461231,145.78,145.76,6.86059275]
[1750842288859,5.54461231,145.77,145.74,6.74]
[1750842289041,5.54461231,145.77,145.75,30.0]
[1750842289226,5.54461231,145.78,145.75,30.0]
[1750842290275,6.85875907,145.8,145.75,30.0]
[1750842290456,5.54461231,145.78,145.75,30.0]
[1750842290834,5.54461231,145.78,145.75,6.86104904]
[1750842291236,5.54461231,145.78,145.75,95.56104904]
[1750842291450,6.85875907,145.8,145.75,95.56104904]
[1750842291635,5.54461231,145.78,145.75,95.56104904]
[1750842292034,5.54461231,145.79,145.75,95.56104904]
[1750842293246,5.54461231,145.78,145.75,95.56104904]
[1750842294032,5.54461231,145.77,145.75,88.7]
[1750842294238,6.85892475,145.8,145.75,95.56097364]
[1750842294433,5.54461231,145.78,145.75,95.56097364]
[1750842295755,5.54461231,145.78,145.75,88.7]
[1750842295957,5.54461231,145.76,145.74,6.74]
[1750842296135,5.54461231,145.75,145.74,6.74]
[1750842297858,12.40567577,145.75,145.74,6.74]
[1750842299759,6.86079439,145.76,145.74,6.74]
[1750842300059,5.54461231,145.75,145.74,6.74]
[1750842300266,24.00565648,145.8,145.74,6.74]
[1750842300451,5.54461231,145.75,145.74,6.74]
[1750842300957,26.0,145.76,145.74,6.74]
[1750842301260,5.54461231,145.75,145.74,6.74]
[1750842301757,26.0,145.76,145.74,6.74]
[1750842301965,5.54461231,145.77,145.74,13.60141559]
[1750842302140,6.85930755,145.79,145.74,13.60141559]
[1750842302348,5.54461231,145.78,145.74,13.60141559]
[1750842302840,5.54461231,145.77,145.74,13.60141559]
[1750842303043,6.85930755,145.79,145.74,13.60141559]
[1750842303242,5.54461231,145.77,145.74,13.60141559]
[1750842305152,5.54461231,145.78,145.74,19.1460279]
[1750842305656,5.54461231,145.77,145.74,13.60141559]
[1750842305859,5.54461231,145.78,145.74,19.1460279]
[1750842306165,5.54461231,145.79,145.75,5.54461231]
[1750842306360,32.85843717,145.81,145.75,5.54461231]
[1750842306666,5.54461231,145.79,145.75,5.54461231]
[1750842306857,5.54461231,145.76,145.74,36.74]
[1750842307044,26.0,145.79,145.74,6.74]
[1750842307244,5.54461231,145.77,145.74,6.74]
[1750842307863,32.8597545,145.78,145.74,6.74]
[1750842308066,5.54461231,145.77,145.74,6.74]
[1750842308259,26.0,145.78,145.74,6.74]
[1750842308460,5.54461231,145.77,145.74,6.74]
[1750842308967,26.0,145.78,145.74,6.74]
[1750842309170,5.54461231,145.77,145.74,6.74]
[1750842309562,26.0,145.78,145.74,6.74]
[1750842309769,5.54461231,145.77,145.74,6.74]
[1750842310855,5.54461231,145.77,145.74,13.60148175]
[1750842311852,5.54461231,145.77,145.74,102.30148175]
[1750842312253,31.54461231,145.78,145.74,102.30148175]
[1750842312550,31.54461231,145.78,145.74,107.84609406]
[1750842312957,31.54461231,145.78,145.74,102.30148175]
[1750842313558,38.40427486,145.78,145.74,102.30148175]
[1750842313761,5.54461231,145.76,145.74,95.44]
[1750842315078,6.86026722,145.77,145.74,95.44]
[1750842315270,5.54461231,145.76,145.74,95.44]
[1750842316979,5.54461231,145.75,145.74,95.44]
[1750842317567,5.54461231,145.76,145.74,95.44]
[1750842318172,5.54461231,145.77,145.74,95.44]
[1750842319175,26.0,145.78,145.74,13.60151135]
[1750842319382,5.54461231,145.79,145.75,5.54461231]
[1750842319876,5.54461231,145.79,145.74,48.48612366]
[1750842320989,6.85897518,145.8,145.74,48.48612366]
[1750842321184,5.54461231,145.79,145.74,48.48612366]
[1750842322185,26.0,145.8,145.74,48.48612366]
[1750842322385,5.54461231,145.79,145.75,5.54461231]
[1750842323085,5.54461231,145.79,145.74,48.48612366]
[1750842323462,6.85885362,145.8,145.74,48.48612366]
[1750842323662,5.54461231,145.79,145.74,48.48612366]
[1750842323879,26.0,145.8,145.74,42.94151135]
[1750842324064,5.54461231,145.79,145.75,7.08501231]
[1750842324788,5.54461231,145.79,145.75,1.5404]
[1750842326194,5.54461231,145.79,145.76,6.86059275]
[1750842327189,5.54461231,145.78,145.75,8.40125449]
[1750842328400,5.54461231,145.79,145.75,13.9458668]
[1750842329596,5.54461231,145.79,145.75,102.6458668]
[1750842336600,5.54461231,145.78,145.75,97.10125449]
[1750842337397,5.54461231,145.77,145.75,88.7]
[1750842337595,6.85944125,145.79,145.75,95.56100227]
[1750842337775,5.54461231,145.77,145.75,95.56100227]
[1750842337976,5.54461231,145.78,145.75,95.56100227]
[1750842338778,5.54461231,145.79,145.75,95.56100227]
[1750842339304,5.54461231,145.79,145.75,101.10561458]
[1750842340903,5.54461231,145.79,145.75,95.56100227]
[1750842341089,5.54461231,145.79,145.75,101.10561458]
[1750842341399,26.0,145.8,145.77,5.54461231]
[1750842341896,26.0,145.8,145.77,12.40455722]
[1750842342202,26.0,145.8,145.77,6.85994491]
[1750842342403,31.54461231,145.8,145.77,6.85994491]
[1750842344589,31.54461231,145.8,145.76,41.56503096]
[1750842344789,31.54461231,145.8,145.76,36.02041865]
[1750842345398,31.54461231,145.8,145.76,35.95877531]
[1750842345901,6.85824214,145.81,145.76,41.50338762]
[1750842346106,5.54461231,145.8,145.76,41.50338762]
[1750842347600,5.54461231,145.8,145.76,130.20338762]
[1750842350205,5.54461231,145.8,145.76,101.10503096]
[1750842350607,6.85798077,145.82,145.76,95.56041865]
[1750842350788,5.54461231,145.8,145.76,101.10503096]
[1750842352313,5.54461231,145.81,145.76,101.10503096]
[1750842357016,12.40296073,145.81,145.76,101.10503096]
[1750842357216,5.54461231,145.81,145.76,101.10503096]
[1750842357406,5.54461231,145.81,145.76,102.72673096]
[1750842357604,5.54461231,145.81,145.76,97.18211865]
[1750842357809,5.54461231,145.81,145.76,102.72673096]
[1750842358910,5.54461231,145.81,145.76,97.18211865]
[1750842359109,5.54461231,145.81,145.76,102.72673096]
[1750842360020,5.54461231,145.81,145.77,6.74]
[1750842361926,5.54461231,145.81,145.77,13.59996944]
[1750842362129,5.54461231,145.81,145.77,102.29996944]
[1750842365516,12.40286271,145.81,145.77,102.29996944]
[1750842366016,6.85776985,145.82,145.77,102.29996944]
[1750842366211,3.54617717,145.81,145.77,102.29996944]
[1750842367527,3.54617717,145.8,145.77,102.29996944]
[1750842368227,3.54617717,145.8,145.77,131.17996944]
[1750842369331,3.54617717,145.8,145.77,124.32]
[1750842370303,3.54617717,145.8,145.77,131.18004687]
[1750842371106,26.0,145.83,145.77,134.72622404]
[1750842371308,3.54617717,145.82,145.78,3.54617717]
[1750842371507,3.54617717,145.79,145.77,30.0]
[1750842371704,3.54617717,145.78,145.75,6.56]
[1750842371937,3.54617717,145.76,145.75,6.56]
[1750842372429,24.5914786,145.76,145.75,36.56]
[1750842372809,24.5914786,145.76,145.75,6.56]
[1750842373618,43.24112746,145.76,145.75,6.56]
[1750842373824,26.0,145.73,145.7,6.56]
[1750842374012,3.54617717,145.71,145.7,6.56]
[1750842374212,5.54939133,145.71,145.7,6.56]
[1750842374820,26.0,145.73,145.7,6.56]
[1750842375109,5.54939133,145.73,145.7,6.56]
[1750842375314,5.54939133,145.73,145.7,13.42333583]
[1750842375519,5.54939133,145.74,145.7,18.97272716]
[1750842376131,5.54939133,145.75,145.71,5.54939133]
[1750842376306,5.54939133,145.77,145.72,5.54939133]
[1750842376510,5.54939133,145.8,145.75,5.54939133]
[1750842376742,5.54939133,145.8,145.76,5.54939133]
[1750842376930,5.54939133,145.8,145.77,6.56]
[1750842377317,6.6087,145.83,145.77,6.56]
[1750842377517,5.54939133,145.81,145.77,6.56]
[1750842377735,26.0,145.8,145.77,6.56]
[1750842378034,12.40793238,145.81,145.77,6.56]
[1750842378336,26.0,145.8,145.77,6.56]
[1750842379336,38.40817677,145.8,145.77,6.56]
[1750842380320,26.0,145.8,145.77,6.56]
[1750842381433,32.85871431,145.8,145.77,6.56]
[1750842381757,17.14093496,145.85,145.78,5.54939133]
[1750842381932,5.54939133,145.83,145.79,5.54939133]
[1750842382942,12.40675623,145.83,145.79,5.54939133]
[1750842385442,5.54939133,145.83,145.79,5.54939133]
[1750842386135,38.40596148,145.85,145.81,5.54939133]
[1750842387436,32.85657015,145.85,145.8,6.85863819]
[1750842387642,38.40596148,145.85,145.81,5.54939133]
[1750842388245,38.40596148,145.85,145.8,12.40802952]
[1750842388945,5.54939133,145.84,145.8,12.40802952]
[1750842389846,26.0,145.85,145.8,6.85863819]
[1750842390154,5.54939133,145.84,145.8,12.40802952]
[1750842390845,5.54939133,145.84,145.81,5.54939133]
[1750842391756,5.54939133,145.84,145.81,94.24939133]
[1750842391924,32.8544794,145.89,145.83,7.14159133]
[1750842392126,5.54939133,145.88,145.84,12.10939133]
[1750842392344,5.54939133,145.87,145.84,6.56]
[1750842392733,5.54939133,145.86,145.84,6.56]
[1750842392929,5.54939133,145.86,145.84,95.26]
[1750842393119,5.54939133,145.85,145.84,95.26]
[1750842393324,44.64964886,145.85,145.76,6.3747]
[1750842393518,5.54939133,145.84,145.79,5.54939133]
[1750842393744,5.54939133,145.84,145.8,5.54939133]
[1750842393935,5.54939133,145.84,145.79,5.54939133]
[1750842394130,5.54939133,145.84,145.8,5.54939133]
[1750842394531,5.54939133,145.83,145.79,5.54939133]
[1750842394729,26.0,145.83,145.79,5.54939133]
[1750842394926,6.8544794,145.89,145.8,1.5737]
[1750842395133,26.0,145.86,145.83,5.54939133]
[1750842395357,5.54939133,145.86,145.84,6.44]
[1750842395655,26.44274886,145.91,145.84,6.44]
[1750842395860,5.54939133,145.88,145.84,11.98939133]
[1750842396052,6.85400959,145.9,145.84,11.98939133]
[1750842396243,26.0,145.87,145.84,11.98939133]
[1750842396962,26.0,145.87,145.84,18.84618864]
[1750842397257,26.0,145.87,145.84,6.44]
[1750842397855,5.54939133,145.86,145.84,6.44]
[1750842398749,32.8555066,145.87,145.84,6.44]